Cogmind - Beta 16 @@@ ROGUE MODE // 2025.12.22 @ 17:04:40 Player: Artackni Result: Destroyed by D-53 Grenadier with Mini Grenade Launcher Performance ------------- Evolutions (0) 0 Regions Visited (3) 600 Robots Destroyed (21) 105 Value Destroyed (582) 582 Prototype IDs (0) 0 Alien Tech Used (0) 0 Bonus (0) 0 TOTAL SCORE: 1287 Bonus ------- None Cogmind --------- Core Integrity 0/250 Matter 177/300 Energy 100/100 System Corruption 1% Temperature Cool (0) Movement Rolling (105) Ox1 Location -9/Recycling Parts ------- > --- POWER (1) -------- (None) > --- PROPULSION (2) --- Armored Wheel > --- UTILITY (2) ------ Small Storage Unit > --- WEAPON (2) ------- Subdweller Shrapnel Launcher > --- INVENTORY (8) ---- Subdweller Power Source Makeshift Power Source Improved Aluminum Leg Improved Aluminum Leg Makeshift Trap Scanner Light Armor Plating Makeshift System Shield Particle Cannon Peak State ------------ > --- POWER ------------ Subdweller Power Source > --- PROPULSION ------- Improved Aluminum Leg Subdweller Monowheel > --- UTILITY ---------- Small Storage Unit Subdweller Optics > --- WEAPON ----------- Subdweller Laser Subdweller Machine Gun > --- INVENTORY -------- Improved Ion Engine Makeshift Power Source Improved Aluminum Leg Improved Aluminum Leg Armored Wheel Armored Wheel Makeshift Trap Scanner Subdweller Shrapnel Launcher [Rating: 15] Favorites ----------- Power Improved Ion Engine Engine Improved Ion Engine Propulsion Improved Aluminum Leg Leg Improved Aluminum Leg Wheel Subdweller Monowheel Utility Small Storage Unit Device Seismic Detector Storage Small Storage Unit Protection Hardened Light Armor Plating Weapon Subdweller Machine Gun Energy Gun Subdweller Laser Energy Cannon Particle Cannon Ballistic Gun Subdweller Machine Gun Ballistic Cannon Improved Light Cannon Launcher Subdweller Shrapnel Launcher Build | -11 -10 -10 -9 ------- Run | Yrd Mat Sub Rec Slots Evolved . | . . . . Power . | . . . . Propulsion . | . . . . Utility . | . . . . Weapon . | . . . . Parts Attached 25 | 5 5 11 4 Power 5 | 1 1 3 . Engine 5 | 1 1 3 . Core . | . . . . Reactor . | . . . . Propulsion 7 | . 4 2 1 Treads . | . . . . Leg 4 | . 4 . . Wheel 3 | . . 2 1 Hover . | . . . . Flight . | . . . . Utility 5 | 2 . 2 1 Device 3 | 1 . 2 . Storage 1 | 1 . . . Processor . | . . . . Hackware . | . . . . Protection 1 | . . . 1 Artifact . | . . . . Weapon 8 | 2 . 4 2 Energy Gun 2 | 1 . 1 . Energy Cannon 1 | . . . 1 Ballistic Gun 3 | 1 . 2 . Ballistic Cannon 1 | . . . 1 Launcher 1 | . . 1 . Special Weapon . | . . . . Impact Weapon . | . . . . Slashing Weapon . | . . . . Piercing Weapon . | . . . . Special Melee Weapon . | . . . . Unidentified Prototypes . | . . . . Parts Lost 5 | . . 1 4 Power 1 | . . . 1 Propulsion 1 | . . . 1 Utility 2 | . . 1 1 Weapon 1 | . . . 1 Highest Loss Streak 4 | . . 1 4 To Critical Strikes . | . . . . Average Backups 7 | 3 7 7 7 Power 1 | . 1 2 2 Propulsion 3 | 1 3 3 2 Utility 1 | . 1 1 2 Weapon . | . 1 . 1 Tool/Special . | . . . . Unused Backups 11 | . 2 3 6 Power 3 | . 1 1 1 Propulsion 2 | . . . 2 Utility 5 | . 1 1 3 Weapon 1 | . . 1 . Tool/Special . | . . . . Average Slot Usage (%) 99 | . 99 99 98 Engine 14 | . 14 14 14 Leg 16 | . 27 18 . Wheel 11 | . . 9 27 Device 11 | . 14 13 3 Storage 14 | . 14 14 14 Protection 1 | . . . 9 Energy Gun 8 | . 14 9 . Energy Cannon 1 | . . . 7 Ballistic Gun 17 | . 14 18 17 Peak Build Rating 15 | 5 11 15 14 Average Rating 12 | 3 10 12 13 On Entrance 7 | . 5 11 14 Avg Prop Armor Cover (%) 10 | . . 10 . Naked Turns . | . . . . Heaviest Build 25 | 15 17 25 20 Greatest Support 32 | 3 26 32 32 Greatest Overweight (x) 4 | 4 . 1 . Average Overweight (x) . | 1 . . . Largest Inventory Capacity 8 | 8 8 8 8 Average Capacity 7 | 6 8 8 8 Most Carried 8 | 5 8 8 8 Average Carried 7 | 3 7 7 7 Final Capacity 8 | 8 8 8 8 Final Carried 8 | 5 8 8 8 Class Distribution -------------------- 100% | Mutant Dominant Class ---------------- Mutant | -10/Materials Mutant | -10/Subcaves Mutant | -9/Recycling Resources | -11 -10 -10 -9 ----------- Run | Yrd Mat Sub Rec Matter Collected 613 | 237 69 256 51 Remotely . | . . . . Salvage Created 490 | 38 . 277 175 Parts 35 | 6 . 22 7 Haulers Intercepted . | . . . . Recyclers Shooed . | . . . . Parts Field Recycled . | . . . . Retrieved Matter . | . . . . Parts Self-Destructed 16 | . . 16 . Prevented . | . . . . Parts Restored . | . . . . Kills | -11 -10 -10 -9 ------- Run | Yrd Mat Sub Rec Combat Hostiles Destroyed 16 | . . 10 6 Guns 9 | . . 9 . AOE 7 | . . 1 6 Classes Destroyed 9 | 1 . 3 5 Worker 1 | . . . 1 Tunneler 2 | 2 . . . Turret 2 | . . 2 . Swarmer 5 | . . 4 1 Grunt 1 | . . . 1 Protector 2 | . . . 2 Demolisher 1 | . . . 1 Programmer 1 | . . . 1 Subdweller 6 | . . 6 . Best Kill Streak 7 | 1 . 6 7 Combat Bots Only 6 | . . 4 6 Max Kills in Single Turn 2 | 1 . 2 2 Gunslinging . | . . . . Exploded 2 | . . 1 2 Melee . | . . . . Uniques/NPCs Destroyed . | . . . . Combat | -11 -10 -10 -9 -------- Run | Yrd Mat Sub Rec Hostile Shots Fired 112 | . . 84 28 Missed 29 | . . 20 9 Hits 83 | . . 64 19 Projectile 83 | . . 64 19 AOE 5 | . . . 5 Critical Strikes 3 | . . 2 1 Damage Taken 1149 | . . 760 389 Core 262 | . . 168 94 Absorbed by Shields . | . . . . Core Remaining (%) 100 | 100 . . . Volleys Fired 42 | 3 2 30 7 Largest 2 | 1 2 2 2 Hottest 90 | 50 70 90 88 Shots Fired 68 | 3 4 52 9 Gun 57 | 3 4 48 2 Cannon 2 | . . . 2 Launcher 9 | . . 4 5 Special . | . . . . Kinetic 43 | . 2 34 7 Thermal 25 | 3 2 18 2 Explosive . | . . . . Electromagnetic . | . . . . Robot Hit Streak 8 | 3 4 8 3 Robot Miss Streak 3 | . 2 3 2 Penetration Max . | . . . . Secondary Targets . | . . . . Shots Hit Robots 44 | 3 2 35 4 Core Hits 31 | 2 . 19 10 Critical Kills . | . . . . Critical Parts Destroyed . | . . . . Critical Strikes . | . . . . Melee Attacks . | . . . . Impact . | . . . . Slashing . | . . . . Piercing . | . . . . Sneak Attacks . | . . . . Combat Hostiles . | . . . . Follow-up Attacks . | . . . . Damage Inflicted 1624 | 37 28 842 717 Guns 653 | 37 28 573 15 Cannons 15 | . . . 15 Explosions 956 | . . 269 687 Melee . | . . . . Ramming . | . . . . Kinetic 1328 | . 15 611 702 Thermal 296 | 37 13 231 15 Explosive . | . . . . Electromagnetic . | . . . . Impact . | . . . . Slashing . | . . . . Piercing . | . . . . Highest Corruption 1 | . . . 1 Average Corruption 1 | . . . 1 Corruption Purged . | . . . . Corruption Blocked . | . . . . Overload Shots . | . . . . Overflow Damage 108 | . . . 108 Projectiles 4 | . . . 4 Explosions 104 | . . . 104 Melee . | . . . . Knockbacks . | . . . . Impact . | . . . . Kinetic . | . . . . Secondary . | . . . . Self-Inflicted Damage 19 | . . . 19 Shots 1 | . . . 1 Rammed . | . . . . Targets Rammed . | . . . . Kicked . | . . . . Crushed . | . . . . Highest Temperature 86 | 20 24 . 86 Average Temperature 27 | 10 13 . 46 Received Heat Transfer 99 | . . 99 . Siege Activations . | . . . . Martial Activations . | . . . . Shielding Activations . | . . . . Robots Disrupted . | . . . . Combat Hostiles . | . . . . Robots Corrupted . | . . . . Combat Hostiles . | . . . . Parts Fried . | . . . . Impact Corruptions . | . . . . Robots Melted . | . . . . Combat Hostiles . | . . . . Parts Melted 4 | 2 . 2 . Heat Transferred 611 | 111 37 434 29 Parts Sabotaged . | . . . . Parts Stolen . | . . . . Parts Stripped . | . . . . Power Chain Reactions . | . . . . Alert | -11 -10 -10 -9 ------- Run | Yrd Mat Sub Rec Maximum Alert Level . | . . . . Low Security (%) 100 | 100 100 . 100 Level 1 . | . . . . Level 2 . | . . . . Level 3 . | . . . . Level 4 . | . . . . Level 5 . | . . . . High Security . | . . . . Max Security . | . . . . Peak Influence 126 | 5 5 . 126 Initial 102 | . 3 . 102 Average 19 | 1 . . 37 Influence Increases 416 | 10 5 225 176 Destroy 0b10 Robot/C 200 | . . 120 80 Destroy 0b10 Robot/NC 35 | 10 . . 25 Successful Hack 14 | . 5 . 9 Disable Machine 30 | . . . 30 Destroy Structure 32 | . . . 32 Lose Combat Pursuer 105 | . . 105 . Influence Decreases 299 | 5 10 12 272 Entered New Map 113 | . 2 . 111 Time Decay 146 | 5 8 12 121 Lost Part 40 | . . . 40 Squads Dispatched 2 | . 2 . . Investigation 1 | . 1 . . Extermination . | . . . . Reinforcement 1 | . 1 . . Assault . | . . . . Garrison . | . . . . Intercept . | . . . . Searches Triggered . | . . . . Construction Impeded . | . . . . Haulers Reinforced . | . . . . Active Scanning Responses . | . . . . Cargo Convoy Interrupts . | . . . . Stealth | -11 -10 -10 -9 --------- Run | Yrd Mat Sub Rec Distress Signals . | . . . . Communications Jammed . | . . . . Distress Signals . | . . . . Times Spotted 27 | . 3 18 6 Peak Tracking Total 6 | . 4 6 6 Tactical Retreats 2 | . . 2 . Traps | -11 -10 -10 -9 ------- Run | Yrd Mat Sub Rec Traps Triggered 2 | . . 2 . Indirectly . | . . . . Trap Hack Attempts . | . . . . Triggered . | . . . . Disarmed . | . . . . Reprogrammed . | . . . . Reused . | . . . . Traps Extracted . | . . . . Installed . | . . . . Triggered . | . . . . Machines | -11 -10 -10 -9 ---------- Run | Yrd Mat Sub Rec Machines Disabled 5 | . . 3 2 Max in Single Turn 3 | . . 3 2 Machines Repaired . | . . . . Machines Dismantled . | . . . . Machines Sabotaged . | . . . . Overloaded Fab Kills . | . . . . Hacking | -11 -10 -10 -9 --------- Run | Yrd Mat Sub Rec Machines Accessed 12 | . 2 1 9 Terminals 6 | . 2 . 4 Fabricators . | . . . . Repair Stations . | . . . . Recycling Units 5 | . . . 5 Scanalyzers . | . . . . Garrison Access . | . . . . Total Hacks 29 | . 3 4 22 Successful 15 | . 2 4 9 Failed 14 | . 1 . 13 Catastrophic 1 | . . . 1 Database Lockouts . | . . . . Manual 3 | . . . 3 Terminals 13 | . 3 . 10 Fabricators . | . . . . Repair Stations . | . . . . Recycling Units 12 | . . . 12 Scanalyzers . | . . . . Garrison Access . | . . . . Terminal Hacks 10 | . 2 4 4 Record 5 | . . 4 1 Part Schematic 1 | . . . 1 Emergency Access Points 1 | . 1 . . Terminal Index 1 | . . . 1 Hauler Manifests 2 | . 1 . 1 Fabricator Hacks . | . . . . Repair Station Hacks . | . . . . Recycling Unit Hacks 5 | . . . 5 Retrieve Components 5 | . . . 5 Scanalyzer . | . . . . Garrison Access Hacks . | . . . . Unauthorized Hacks . | . . . . Terminals . | . . . . Fabricators . | . . . . Repair Stations . | . . . . Recycling Units . | . . . . Scanalyzers . | . . . . Garrison Access . | . . . . Data Cores Recovered . | . . . . Used . | . . . . Hacking Detections 8 | . 1 . 7 Full Trace Events . | . . . . Feedback Events . | . . . . Feedback Blocked . | . . . . Robot Schematics Acquired . | . . . . Robots Built . | . . . . Authchips . | . . . . Time . | . . . . Total Robot Build Rating . | . . . . Part Schematics Acquired 1 | . . . 1 Parts Built . | . . . . Authchips . | . . . . Time . | . . . . Total Part Build Rating . | . . . . Part Studies Acquired . | . . . . Parts Repaired . | . . . . Time . | . . . . Parts Recycled . | . . . . Recycled Matter . | . . . . Retrieved Matter . | . . . . Retrieved Components 3 | . . . 3 Parts Scanalyzed . | . . . . Part Schematics Acquired . | . . . . Parts Damaged . | . . . . Bothacking | -11 -10 -10 -9 ------------ Run | Yrd Mat Sub Rec Used RIF Installer . | . . . . Robots Hacked . | . . . . Non-combat . | . . . . Combat . | . . . . Robot Hacks Applied . | . . . . Relay Couplers Released . | . . . . Fabnet Peak Effective % . | . . . . Robots Rewired . | . . . . Allies Hacked . | . . . . Hacks Repelled . | . . . . Allies | -11 -10 -10 -9 -------- Run | Yrd Mat Sub Rec Total Allies . | . . . . Largest Group . | . . . . Highest-Rated Group . | . . . . Highest-Rated Ally . | . . . . Total Orders . | . . . . Ally Attacks . | . . . . Total Damage . | . . . . Kills . | . . . . Allies Corrupted . | . . . . Allies Melted . | . . . . Intel | -11 -10 -10 -9 ------- Run | Yrd Mat Sub Rec Active Infowar (turns) 1211 | 4 248 880 79 Optics 318 | . . 239 79 Seismic 893 | 4 248 641 . Robot Analysis Total . | . . . . Derelict Logs Recovered 3 | . . 3 . Drone Launches . | . . . . Drone Recoveries . | . . . . Exploration | -11 -10 -10 -9 ------------- Run | Yrd Mat Sub Rec Turns Passed 1969 | 75 248 1321 325 Spaces Moved 1579 | 40 183 1034 322 Core 40 | 40 . . . Treads . | . . . . Legs 608 | . 183 425 . Wheels 931 | . . 609 322 Hover . | . . . . Flight . | . . . . Fastest Speed 50 | 50 120 100 90 Average Speed 110 | 145 120 114 90 Slowest Speed 250 | 250 120 120 100 Overloaded Moves . | . . . . Propulsion Burnouts . | . . . . Robots Hopped . | . . . . Potential Cave-ins . | . . . . Cave-ins Triggered . | . . . . Exploration Rate (%) 40 | 5 39 52 65 Regions Visited 3 Branch Regions 2 Pre-discovered Areas 1 | . . 1 . Known Exits Taken . | . . . . Unknown Exits Taken 3 | 1 1 1 . Scrap Searched 4 | . . 4 . Spaces Dug 6 | . . . 6 Terrain Destroyed 96 | . . 47 49 Melee . | . . . . Projectile . | . . . . AOE 96 | . . 47 49 Terrain Rammed . | . . . . Walls Destroyed . | . . . . Machines Disabled . | . . . . Actions | -11 -10 -10 -9 --------- Run | Yrd Mat Sub Rec Total 1725 | 53 208 1118 346 Wait 42 | . 7 26 9 Move 1576 | 39 182 1033 322 Hop . | . . . . Pick Up 20 | 6 7 6 1 Fast Attach 7 | 4 . 2 1 Attach 6 | 1 2 3 . Detach . | . . . . Swap 17 | . 3 10 4 Drop 15 | . 5 8 2 Fire 42 | 3 2 30 7 Melee . | . . . . Ram . | . . . . Kick . | . . . . Crush . | . . . . Escape Stasis . | . . . . Rewire . | . . . . Trap . | . . . . Miscellaneous . | . . . . Route ------- -11/Scrapyard -10/Materials (discovered 3 exits: [*Mat] / [*Min] / *Sub) -10/Subcaves (discovered 2 exits: [*Mat] / *Rec) -9/Recycling (discovered 1 exit: [*Fac]) History --------- Turn | Location | Event 10 | -11/Scrapyard | Discovered new exit (range 15) 76 | -11/Scrapyard | Entered Materials 77 | -10/Materials | Met a group of wandering Federalists 152 | -10/Materials | Discovered new exit (range 7) 245 | -10/Materials | Discovered new exit (range 15) 251 | -10/Materials | Lost 3 allies 305 | -10/Materials | Build established: Mutant 321 | -10/Materials | Discovered new exit (range 3) 324 | -10/Materials | Entered Subcaves 325 | -10/Subcaves | Continued accompanying wandering Federalists (2) 332 | -10/Subcaves | Learned Materials stockpile data 870 | -10/Subcaves | Shifting Twisted Machinery released Sub. Monowheel 871 | -10/Subcaves | Shifting Twisted Machinery released Sub. Optics 942 | -10/Subcaves | Discovered new exit (range 11) 944 | -10/Subcaves | Ambushed by Subdwellers from Twisted Machinery 1009 | -10/Subcaves | Learned 8 Materials zone layouts 1491 | -10/Subcaves | Shifting Twisted Machinery released Mak. System Shield 1493 | -10/Subcaves | Shifting Twisted Machinery released Sub. Laser 1533 | -10/Subcaves | Visited Clippyterm 1536 | -10/Subcaves | Learned Factory garrison access intel 1595 | -10/Subcaves | Core integrity fell below 50% 1621 | -10/Subcaves | Discovered new exit (range 8) 1645 | -10/Subcaves | Entered Recycling 1646 | -9/Recycling | Met a Zionite searching for Scraptown 1945 | -9/Recycling | Discovered new exit (range 5) 1966 | -9/Recycling | Core integrity fell below 20% 1970 | -9/Recycling | Destroyed by D-53 Grenadier with Mini Grenade Launcher Last Messages --------------- 01962_ Hrd. Light Armor Plating destroyed. 01962_ Terminal disabled. 01963_ Slug penetrates Wall. 01963_ Lgt. Assault Rifle destroyed. 01964_ Destroyed Gravmag System. 01964_ D-53 Grenadier destroyed. 01964_ I-25 Savior destroyed. 01966_ Slug penetrates Wall. 01966_ A-02 Transporter destroyed. 01966_ Destroyed Wheel. 01966_ K-01 Serf destroyed. 01967_ Arm. Wheel destroyed. 01968_ Destroyed Shock Absorption System. 01968_ Destroyed Lgt. Nuclear Core. 01968_ Destroyed Shock Rifle. 01968_ Destroyed Imp. Heat Sink. 01968_ P-60 Hacker destroyed. 01968_ G-34 Mercenary destroyed. 01969_ Penetrated by Slug. 01970_ Sub. Power Source destroyed. Map ----- +----------------------------------------------------+ | | | ????????????????????????????????????????????????? | | ????????????????????????????????????????????????? | | ????????????????????????????????????????????????? | | ????????????????????????????????????????????????? | | ????????????????????????????????????????????????? | | ????????????????????????????????????????????????? | | ????????????????????????????????????????????????? | | ????????????????????????????????????????????????? | | ????????????????????????????????????????????????? | | ????????????????????????????????????????????????? | | ????????????????????? ?????????????????????????? | | ?????????????????? #????????????????????????? | | ???????????????# ;##??????????????????????? | | ??????????????#;] % %???????????????????????? | | ??????????????#; ! % * |???????????????????????? | | ??????????????#; %% ???????????????????????? | | ??????????????#; h=???????????????????????? | | ###############; ;####???????????????????? | | d #???????????????????? | | %* < #???????????????????? | | """ """ % ##??????????????????? | | """ """ ####;;; #??????????????????? | | """ """ #??### ##?????????????????? | | #??#"" #?????????????????? | | #??#"T @ #??????????????????? | | """ """ #??#"" #?????????????????? | | """ """ #??### #?????????????????? | | """ """ #????# "" ##?????????????????? | | #????# ##??????????????????? | | ###??###+ ## ##???????????????????? | | """ """ ""#????# ### #????????????????????? | | """ """ T"#????#u u #??##????????????????????? | | """ """ ""#????# #????????????????????????? | | ###?#### ####?????????????????????? | | #???# #?????????????????? | | """ """ #???# ###########+##?????????????????? | | """ """ #???# #??????????????????????????????? | | """ """ #???# #??????????????????????????????? | | #???# #??????????????????????????????? | | ##### #??????????????????????????????? | | #### #??????????????????????????????? | | #####+######+##?????????????????????????????? | | # #?????????????????????????????? | | # #????????????????????????????? | | # ##????????????????????????????? | | ??# #?????????????????????????????? | | ????# #????????????????????????????? | | ????# ##????????????????????????????? | | ????# #?????????????????????????????? | +----------------------------------------------------+ Best States ------------- Heat Dissipation 25 Coolant Potential 50 Energy Generation 15 Energy Capacity 265 Matter Stores 300 Matter Capacity 300 Sight Range 21 Terrain Scan Density 10 Armor Coverage 150 Evasion (%) 55 Item Schematics ----------------- Imp. Titanium Leg | -9/Recycling | Hacked Robot Schematics ------------------ None Fabricated ------------ Nothing Repaired ---------- Nothing Studied --------- None Alien Tech Used ----------------- None Achievements -------------- Spot Them First Strength In Numbers Challenges ------------ None Game ------ Seed AnalysisLightningRedirector Manual? 0 Play Time 00:33:48 Cumulative 13.0 hours Start 2025.12.21 @ 18:30:15 End 2025.12.22 @ 17:04:40 Sessions 2 Manual Loads 0 Difficulty Rogue Special Mode None Game No. 7 Rogue 7 Adventurer 0 Explorer 0 Win Type - Total 1 Types 1/0/0/0/0/0/0/0/0/0 Lore% 11 Gallery% 15 Achievement% 15 Wizard Run 0 Options --------- Layout 2 ASCII 0 Keyboard 0 Movement Mouse Keybinds 0 Fullscreen 1 Font 24/Smallcaps Map View 50x44 Zoom Use 0% Tactical HUD 1 Map Filters NONE Filters NONE Steam 1 RUN: 8cc082a1-15ce-47d3-80b6-84bfda9a9d9e